bitfinex/quotes_ETHUSD_20250425
["timestamp","ask_amount","ask_price","bid_price","bid_amount"]
[1745544119331,6.20579654,1772.6,1772.1,0.8038]
[1745544119332,5.64178728,1772.5,1772.1,0.8038]
[1745544119539,11.28378783,1772.5,1772.1,0.8038]
[1745544119846,6.90948876,1772.5,1772.1,6.44670707]
[1745544120044,1.26770148,1772.5,1772.1,0.8038]
[1745544120350,5.64256262,1772.3,1771.9,0.7802]
[1745544120571,5.64275784,1772.2,1771.9,0.7802]
[1745544120746,5.6422537,1772.4,1771.9,6.42361041]
[1745544120904,5.6422537,1772.4,1771.9,6.42366537]
[1745544121104,5.6422537,1772.4,1772.0,5.64324112]
[1745544121307,5.64185141,1772.5,1772.1,5.64301186]
[1745544121509,5.162,1772.6,1772.3,5.64223242]
[1745544121702,6.39385796,1772.8,1772.3,6.41216149]
[1745544121909,6.39385796,1772.8,1772.3,12.05436779]
[1745544122140,1.71964561,1772.8,1772.4,5.64192808]
[1745544122405,13.00166072,1772.8,1772.3,6.41223536]
[1745544122713,7.36059519,1772.8,1772.3,6.41223536]
[1745544123053,0.8186,1773.4,1772.5,5.64150757]
[1745544123232,5.64105425,1772.8,1772.3,6.41221262]
[1745544123434,5.64103567,1772.8,1772.3,6.41216289]
[1745544123757,5.64103567,1772.8,1772.4,5.64200341]
[1745544124055,5.64068667,1772.9,1772.4,5.641846]
[1745544124208,5.64065641,1772.9,1772.4,5.64178895]
[1745544124408,6.28658205,1772.9,1772.4,5.64178895]
[1745544124639,6.2866286,1772.9,1772.4,5.64184119]
[1745544124843,5.64145856,1772.6,1772.3,0.77]
[1745544125244,5.64115745,1772.7,1772.3,0.77]
[1745544125452,0.56411574,1772.6,1772.3,6.41229129]
[1745544125609,0.56411574,1772.6,1772.3,0.77]
[1745544126131,0.56411574,1772.6,1772.3,6.41226181]
[1745544126336,0.56411574,1772.6,1772.3,0.77]
[1745544127070,5.64145057,1772.6,1772.3,0.77]
[1745544127250,0.64592564,1772.9,1772.3,0.77]
[1745544127251,5.64123713,1772.7,1772.3,0.77]
[1745544127415,5.64131277,1772.7,1772.3,0.77]
[1745544127614,5.64131277,1772.7,1772.3,6.41224387]
[1745544127827,5.64092192,1772.8,1772.3,6.41216954]
[1745544128031,0.56409219,1772.7,1772.4,5.64184074]
[1745544128230,6.28653971,1772.9,1772.5,5.64174229]
[1745544128459,6.28653971,1772.9,1772.4,11.28368544]
[1745544128649,6.28653971,1772.9,1772.5,5.64171917]
[1745544128960,0.64592564,1772.9,1772.5,5.6416941]
[1745544129265,0.64592564,1772.9,1772.4,5.64206725]
[1745544129445,5.162,1773.1,1772.8,5.64075912]
[1745544129628,5.162,1773.1,1772.7,6.43513173]
[1745544129959,5.64028116,1773.0,1772.5,6.4358396]
[1745544130163,0.56402812,1772.9,1772.5,6.4358396]
[1745544130516,6.20455793,1772.9,1772.5,6.4358396]
[1745544130722,0.56402812,1772.9,1772.5,6.4358396]
[1745544130921,0.56402812,1772.9,1772.6,5.64131431]
[1745544131133,0.56402812,1772.9,1772.6,5.6412624]
[1745544131333,5.64000851,1773.1,1772.7,5.64101818]
[1745544131533,0.89148011,1773.4,1773.0,12.03887348]
[1745544131746,0.89148011,1773.4,1773.0,6.398824]
[1745544132141,0.89148011,1773.4,1773.1,5.63973443]
[1745544132346,5.63838629,1773.6,1773.1,11.27935589]
[1745544132551,5.63850949,1773.6,1773.1,5.63962146]
[1745544132758,6.43645961,1773.7,1773.2,5.63947359]
[1745544133063,5.63860509,1773.5,1773.1,5.639718]
[1745544133374,0.64364596,1773.6,1773.2,5.63950851]
[1745544133660,0.64364596,1773.6,1773.2,5.6392986]
[1745544133862,0.64364596,1773.6,1773.2,11.27861904]
[1745544134023,0.64364596,1773.6,1773.2,5.63932166]
[1745544134227,6.28205857,1773.6,1773.2,5.63932166]
[1745544134975,0.64364596,1773.6,1773.2,5.63932166]
[1745544135176,5.63871675,1773.5,1773.1,5.63979374]
[1745544135375,5.63871675,1773.5,1773.0,6.39893071]
[1745544135376,5.63888889,1773.4,1773.0,6.39893071]
[1745544135532,0.7722,1773.3,1772.6,0.7942]
[1745544135874,5.64055211,1772.9,1772.4,6.43607708]
[1745544136044,5.64079729,1772.8,1772.4,6.43607708]
[1745544136248,5.64092806,1772.8,1772.4,0.7942]
[1745544136987,5.64092806,1772.8,1772.4,6.43620889]
[1745544137356,11.2820089,1772.8,1772.4,0.7942]
[1745544137682,5.64111357,1772.7,1772.4,0.7942]
[1745544137881,5.64092879,1772.8,1772.4,0.7942]
[1745544138055,5.64113786,1772.7,1772.4,0.7942]
[1745544138255,1.26083422,1772.8,1772.4,0.7942]
[1745544138450,1.26083422,1772.8,1772.4,6.43609611]
[1745544138673,0.56405521,1772.9,1772.5,5.64151583]
[1745544138861,10.8922005,1773.0,1772.6,5.64131756]
[1745544139056,0.799,1773.2,1772.5,5.64151583]
[1745544139367,6.43858633,1773.2,1772.8,5.64069645]
[1745544139980,5.63958633,1773.2,1772.9,0.7603]
[1745544140145,6.20354496,1773.2,1772.9,0.7603]
[1745544140347,0.56395863,1773.2,1772.9,0.7603]
[1745544140783,0.56395863,1773.2,1772.9,6.4006328]
[1745544141291,5.63924823,1773.3,1772.9,6.4006328]
[1745544141445,5.63964718,1773.2,1772.8,5.6406981]
[1745544141646,5.63964718,1773.2,1772.7,5.64105941]
[1745544141879,5.63970881,1773.2,1772.7,5.64087819]
[1745544142081,5.64086646,1772.8,1772.4,6.40225791]
[1745544142387,5.64057978,1772.9,1772.4,6.40215555]
[1745544142585,5.64057978,1772.9,1772.5,5.64165176]
[1745544142787,5.64060872,1772.9,1772.4,6.40224123]
[1745544142989,5.64091909,1772.8,1772.4,6.40224123]
[1745544143154,5.64027492,1773.0,1772.4,0.7603]
[1745544143356,0.56402749,1772.9,1772.6,5.64142994]
[1745544143884,0.56402749,1772.9,1772.5,5.64160425]
[1745544144046,5.64017383,1773.0,1772.6,5.64122113]
[1745544144252,5.253,1773.1,1772.4,0.7603]
[1745544144558,5.253,1773.1,1772.7,6.40135148]
[1745544144760,1.08925653,1773.1,1772.7,6.40117893]
[1745544144957,5.63931009,1773.3,1772.9,5.64036608]
[1745544145184,5.253,1773.4,1772.9,5.64025624]
[1745544145185,5.6391435,1773.4,1772.9,5.64025624]
[1745544145355,5.6394266,1773.3,1772.8,5.64059545]
[1745544145705,5.6394266,1773.3,1772.8,5.64058876]
[1745544145978,11.27887443,1773.3,1772.9,5.64044995]
[1745544146182,5.63957515,1773.2,1772.8,6.80597764]
[1745544146387,5.6394266,1773.3,1772.8,6.80597764]
[1745544146569,5.6394266,1773.3,1772.9,5.64045631]
[1745544146775,5.6394266,1773.3,1772.9,5.64035945]
[1745544147288,5.63904472,1773.4,1772.9,11.28067146]
[1745544147475,11.27757007,1773.5,1773.0,5.63996179]
[1745544147672,5.63891527,1773.4,1773.0,5.63996179]
[1745544147848,5.63891527,1773.4,1772.9,5.640362]
[1745544148053,5.63891527,1773.4,1773.0,5.64011671]
[1745544148550,6.91144736,1773.5,1773.1,5.63980455]
[1745544148780,6.91144736,1773.5,1773.0,5.63996804]
[1745544148980,6.91144736,1773.5,1772.7,11.65435431]
[1745544149186,5.63898948,1773.4,1773.0,5.64005143]
[1745544149789,5.63930216,1773.3,1772.9,5.64030825]
[1745544150299,5.63930216,1773.3,1772.9,11.28059857]
[1745544150479,11.27815372,1773.4,1772.9,5.64029032]
[1745544150885,5.63963869,1773.2,1772.8,5.64063642]
[1745544151074,5.63939045,1773.3,1772.9,5.64036446]
[1745544151395,5.63983443,1773.2,1772.7,17.29514256]
[1745544151709,5.63983443,1773.2,1772.8,5.6406885]
[1745544151901,11.27957539,1773.2,1772.7,17.29510961]
[1745544152216,5.63976511,1773.2,1772.8,5.64078707]
[1745544152378,6.89414797,1773.4,1773.0,5.6401345]
[1745544152566,5.63923091,1773.3,1772.9,5.64038495]
[1745544152766,5.63923091,1773.3,1772.9,11.2806447]
[1745544153079,6.89414797,1773.4,1773.0,5.64014317]
[1745544153281,5.63888761,1773.4,1773.0,5.64014317]
[1745544153600,5.63871371,1773.5,1773.1,5.63970979]
[1745544153794,5.63890019,1773.4,1773.0,5.6399561]
[1745544154297,0.31484848,1773.5,1773.1,5.63971185]
[1745544154498,5.95354879,1773.5,1773.1,6.42631185]
[1745544154699,5.63888894,1773.4,1773.1,0.7866]
[1745544155012,5.63980476,1773.2,1772.8,5.64078998]
[1745544155306,6.428127,1773.3,1772.8,5.64052588]
[1745544155491,6.428127,1773.3,1772.8,6.20457847]
[1745544155716,12.0676261,1773.3,1772.8,11.84517263]
[1745544156019,12.0676261,1773.3,1772.8,6.20457847]
[1745544156020,5.63960735,1773.2,1772.8,6.20457847]
[1745544157002,1.41114596,1773.6,1773.0,0.8102]
[1745544157217,5.6390094,1773.4,1773.0,6.45007607]
[1745544157589,5.63974065,1773.2,1772.8,6.20476187]
[1745544157908,5.63932746,1773.3,1772.9,5.64038074]
[1745544158415,5.63923376,1773.3,1772.9,5.64028701]
[1745544158581,5.63920429,1773.3,1772.9,5.64025847]
[1745544158972,5.63897836,1773.4,1772.9,5.64025847]
[1745544159318,5.9541318,1773.4,1773.0,5.64012894]
[1745544159472,0.31515344,1773.4,1773.1,5.63970363]
[1745544159672,5.95422146,1773.4,1773.0,6.76797164]
[1745544159872,0.31515344,1773.4,1773.0,6.76797164]
[1745544160103,5.95373775,1773.5,1773.1,5.63971763]
[1745544161005,5.95373775,1773.5,1773.1,5.63967219]
[1745544161171,11.5925497,1773.5,1773.1,5.63967219]
[1745544161373,5.95373775,1773.5,1773.1,5.63967219]
[1745544161680,0.31515344,1773.5,1773.1,5.63967219]
[1745544162103,0.31515344,1773.5,1773.2,0.8321]
[1745544162302,0.31515344,1773.5,1773.2,6.47134449]
[1745544162520,5.63822504,1773.7,1773.2,6.47134449]
[1745544162831,5.63820952,1773.7,1773.3,5.63918971]
[1745544163035,5.63781261,1773.8,1773.4,5.6388356]
[1745544163234,6.41044856,1773.9,1773.4,5.63877092]
[1745544163429,5.95296396,1773.8,1773.4,5.63877092]
[1745544163636,5.63820921,1773.7,1773.2,6.47143612]
[1745544163938,5.63820921,1773.7,1773.3,5.63917621]
[1745544164297,5.95345369,1773.7,1773.3,5.63917621]
[1745544164500,5.95344376,1773.7,1773.2,6.47143612]
[1745544164720,11.27693865,1773.6,1773.2,7.68254463]
[1745544164922,5.63808237,1773.7,1773.2,7.68254463]
[1745544165238,5.63808237,1773.7,1773.3,5.63908277]
[1745544165401,5.63833976,1773.6,1773.2,7.68254463]
[1745544165603,5.63808237,1773.7,1773.2,7.68254463]
[1745544165829,5.63836219,1773.6,1773.2,2.04320851]
[1745544166035,12.09050041,1773.5,1773.1,5.63983464]
[1745544166213,5.63888682,1773.4,1773.0,6.44403566]
[1745544166405,6.45168173,1773.5,1773.0,8.17317006]
[1745544166940,5.63889193,1773.4,1773.0,13.81309931]
[1745544167136,0.8129,1773.5,1773.0,2.5332344]
[1745544167442,5.63920374,1773.3,1772.6,6.41264817]
[1745544167627,5.6400506,1773.1,1772.7,5.64109545]
[1745544167946,5.63929875,1773.3,1772.8,5.64065414]
[1745544168294,5.63995371,1773.1,1772.7,6.84646054]
[1745544168445,5.63964668,1773.2,1772.8,5.64074291]
[1745544168630,5.63998403,1773.1,1772.7,5.64097023]
[1745544168945,5.63985139,1773.1,1772.7,5.64097023]
[1745544169130,5.63985139,1773.1,1772.6,6.41262216]
[1745544169131,5.64025088,1773.0,1772.6,6.41262216]
[1745544169507,5.64025088,1773.0,1772.6,6.41257307]
[1745544169708,5.64025088,1773.0,1772.6,6.41256388]
[1745544169910,12.08637701,1773.1,1772.6,12.05379898]
[1745544170106,6.44623215,1773.1,1772.6,6.41252888]
[1745544170341,6.44623215,1773.1,1772.6,7.05377829]
[1745544170516,5.64029015,1773.0,1772.6,7.05377829]
[1745544170714,6.44623215,1773.1,1772.6,7.05377829]
[1745544171018,6.44623215,1773.1,1772.7,5.64097476]
[1745544171210,0.7871,1773.3,1772.7,5.64098315]
[1745544171415,5.64000916,1773.1,1772.6,1.41255289]
[1745544171745,5.64029493,1773.0,1772.6,6.41272307]
[1745544172081,5.64031013,1773.0,1772.6,0.7713]
[1745544172369,5.64048946,1772.9,1772.6,0.7713]
[1745544172920,5.64124637,1772.7,1772.4,0.7835]
[1745544173121,5.64079422,1772.8,1772.4,0.7835]
[1745544173347,11.28184584,1772.8,1772.4,6.42554099]
[1745544173546,5.64079422,1772.8,1772.4,6.42542864]
[1745544173827,0.8081,1772.9,1772.5,5.64154583]
[1745544174050,0.8081,1772.9,1772.6,5.64141402]
[1745544174226,0.8081,1772.9,1772.5,11.2831367]
[1745544174421,0.8081,1772.9,1772.5,5.64154583]
[1745544174672,5.64030149,1773.0,1772.6,5.6414072]
[1745544174846,5.64030149,1773.0,1772.5,5.64154738]
[1745544175051,1.48083148,1773.0,1772.4,7.06791003]
[1745544175367,5.64089805,1772.8,1772.4,7.06808094]
[1745544175727,5.64089805,1772.8,1772.4,7.06788076]
[1745544175930,5.64089805,1772.8,1772.4,0.7835]
[1745544176127,5.64089805,1772.8,1772.4,6.42552114]
[1745544176364,5.64123882,1772.7,1772.4,0.7835]
[1745544176550,5.64115774,1772.7,1772.4,0.7835]
[1745544176866,11.28193666,1772.8,1772.4,6.42550841]
[1745544177063,5.64089805,1772.8,1772.4,6.42550841]
[1745544177229,5.64060477,1772.9,1772.4,6.42539279]
[1745544177431,6.80585037,1773.0,1772.6,5.64132602]
[1745544178563,11.65509176,1773.1,1772.7,5.64104072]
[1745544178731,6.44809176,1773.1,1772.7,5.64104072]
[1745544178931,5.64039282,1773.0,1772.5,5.64159238]
[1745544179131,5.64039282,1773.0,1772.6,5.64133857]
[1745544179326,11.28078932,1773.0,1772.6,6.76962489]
[1745544179562,5.64039282,1773.0,1772.6,6.76962489]
[1745544179761,0.8113,1772.9,1772.0,5.64334085]
[1745544179936,5.64122546,1772.7,1772.3,11.2844611]
[1745544180135,5.64096105,1772.8,1772.3,6.39850568]
[1745544180343,5.64120023,1772.7,1772.3,7.6026075]
[1745544180661,5.64096105,1772.8,1772.4,5.6420539]
[1745544180849,5.64090762,1772.8,1772.4,5.64190821]
[1745544181037,5.64090762,1772.8,1772.5,0.56419082]
[1745544181363,6.45178184,1772.9,1772.5,6.20572357]
[1745544181725,12.09251665,1772.9,1772.5,6.20572357]
[1745544181928,5.64082613,1772.8,1772.5,0.56419082]
[1745544182179,5.641245,1772.7,1772.3,13.24486527]
[1745544182328,0.8113,1772.9,1772.3,1.96040182]
[1745544182530,5.64128541,1772.7,1772.3,7.60268267]
[1745544182764,11.28268738,1772.7,1772.3,7.60268267]
[1745544182971,5.64128541,1772.7,1772.3,1.96040182]
[1745544183329,5.64128541,1772.7,1772.3,7.6027448]
[1745544183474,11.28264462,1772.7,1772.3,7.6027448]
[1745544183781,5.64150497,1772.6,1772.3,1.96040182]
[1745544183959,5.64130367,1772.7,1772.3,1.96040182]
[1745544184163,5.64130367,1772.7,1772.3,7.60276072]
[1745544184361,5.64098042,1772.8,1772.3,7.60276072]
[1745544184677,5.64079422,1772.8,1772.4,0.76027607]
[1745544184883,5.6413308,1772.7,1772.3,6.39867364]
[1745544185653,5.64143304,1772.6,1772.3,0.7563]
[1745544186576,11.28268513,1772.7,1772.3,6.39863738]
[1745544186881,11.28268513,1772.7,1772.3,7.64441484]
[1745544186882,5.6413308,1772.7,1772.3,7.64441484]
[1745544187090,11.28269916,1772.7,1772.3,7.64441484]
[1745544187691,5.64143956,1772.6,1772.3,2.00207746]
[1745544187880,5.64111242,1772.7,1772.1,0.8283]
[1745544188191,5.64207727,1772.4,1772.1,0.8283]
[1745544188559,9.80643445,1772.9,1772.1,0.8283]
[1745544188758,3.0,1772.4,1771.5,6.40958161]
[1745544189003,5.64367227,1771.9,1771.5,6.40951908]
[1745544189210,5.64367227,1771.9,1771.5,0.7648]
[1745544189501,11.28760427,1771.9,1771.5,0.7648]
[1745544189805,11.28760427,1771.9,1771.5,1.40578956]
[1745544189806,5.6439946,1771.8,1771.5,1.40578956]
[1745544190158,0.818,1772.1,1771.1,6.47827368]
[1745544190159,5.64334085,1772.0,1771.1,6.47827368]
[1745544190368,5.6447823,1771.6,1771.2,5.64587603]
[1745544191064,5.64493625,1771.5,1771.1,6.47818722]
[1745544191291,5.64493557,1771.5,1771.2,0.64781872]
[1745544191476,5.64483165,1771.6,1771.2,0.64781872]
[1745544191801,11.28974485,1771.6,1771.2,0.64781872]
[1745544191981,6.43388342,1771.7,1771.2,6.29357419]
[1745544192184,9.4469409,1771.9,1771.4,0.8012]
[1745544192508,5.64449783,1771.7,1771.4,0.8012]
[1745544192792,5.64419829,1771.8,1771.4,0.8012]
[1745544193099,5.64386676,1771.9,1771.5,5.64482461]
[1745544193405,5.164,1772.0,1771.7,5.64427621]
[1745544193575,5.6429338,1772.2,1771.8,1.34452762]
[1745544193776,12.08552571,1772.3,1771.8,6.98839478]
[1745544193978,5.64272724,1772.2,1771.8,6.98839478]
[1745544194200,5.64198525,1772.5,1772.0,5.64311108]
[1745544194365,5.64207916,1772.4,1772.0,5.64311108]
[1745544195067,5.64207916,1772.4,1771.9,6.34228892]
[1745544195393,5.64207916,1772.4,1771.9,6.34228757]
[1745544195571,11.28374674,1772.5,1772.0,5.64311473]
[1745544195772,11.57179603,1772.6,1772.1,6.20732586]
[1745544195974,10.80659603,1772.6,1772.2,0.8081]
[1745544196173,5.64219161,1772.4,1772.2,0.8081]
[1745544196472,5.64204734,1772.5,1772.2,0.8081]
[1745544197301,10.8066663,1772.6,1772.2,6.45079701]
[1745544197498,5.165,1772.6,1772.3,0.6450797]
[1745544197667,5.64154075,1772.6,1772.3,0.6450797]
[1745544197870,5.64131531,1772.7,1772.3,0.6450797]
[1745544198261,5.64111906,1772.7,1772.3,6.28728679]
[1745544198495,5.64146164,1772.6,1772.3,0.6450797]
[1745544198998,5.64139342,1772.7,1772.3,0.6450797]
[1745544199195,5.64138901,1772.7,1772.3,0.6450797]
[1745544199496,11.28263028,1772.7,1772.3,6.28724528]
[1745544199714,5.64126355,1772.7,1772.3,6.28724528]
[1745544200007,11.28265696,1772.7,1772.3,6.28724528]
[1745544200503,11.28263068,1772.7,1772.3,6.28741831]
[1745544200812,5.64126355,1772.7,1772.3,6.28741831]
[1745544201380,5.64150798,1772.6,1772.3,0.6450797]
[1745544202010,5.64133495,1772.7,1772.3,6.28737151]
[1745544202167,5.64133495,1772.7,1772.3,0.6450797]
[1745544202367,5.64143083,1772.6,1772.3,0.6450797]
[1745544202971,5.64132948,1772.7,1772.3,6.28745392]
[1745544204022,6.45326534,1772.8,1772.4,5.64205416]
[1745544204315,5.64114735,1772.7,1772.3,6.28729628]
[1745544204875,11.28252649,1772.7,1772.3,6.28729628]
[1745544205200,5.64145406,1772.6,1772.3,0.6450797]
[1745544205378,5.6417065,1772.6,1772.2,0.8081]
[1745544205708,5.6417065,1772.6,1772.2,6.45076655]
[1745544205911,5.6417065,1772.6,1772.2,12.09327095]
[1745544206415,5.6417065,1772.6,1772.2,12.09314687]
[1745544206572,5.64150616,1772.6,1772.0,0.7736]
[1745544206907,5.64255298,1772.3,1772.0,0.7736]
[1745544207485,6.42560874,1772.4,1772.0,0.7736]
[1745544207685,6.42560874,1772.4,1772.0,6.41680568]
[1745544207886,12.06792891,1772.4,1772.0,6.41680568]
[1745544208325,0.7829,1772.6,1772.2,5.64245283]
[1745544208514,5.64160768,1772.6,1772.1,5.6430224]
[1745544208715,5.6418476,1772.5,1772.2,0.56430224]
[1745544209176,5.64160768,1772.6,1772.2,6.20699346]
[1745544209372,5.64177321,1772.5,1772.2,0.56430224]
[1745544209622,5.64233137,1772.4,1772.0,0.7736]
[1745544209940,5.64233137,1772.4,1772.0,6.41693831]
[1745544210143,5.64190369,1772.5,1772.2,5.64270161]
[1745544210343,5.64156872,1772.6,1772.2,5.64270161]
[1745544210502,5.64156872,1772.6,1772.2,5.64260083]
[1745544210834,5.64156872,1772.6,1772.2,5.64268977]
[1745544211210,11.28325276,1772.6,1772.2,5.64268977]
[1745544211740,5.64190988,1772.5,1772.0,12.06000047]
[1745544211890,5.64210244,1772.4,1772.0,6.41673589]
[1745544212105,5.64240749,1772.3,1772.0,0.7736]
[1745544212658,11.28507717,1772.3,1772.0,0.7736]
[1745544212945,5.64240749,1772.3,1772.0,0.7736]
[1745544213384,0.7695,1772.5,1771.8,0.7935]
[1745544213544,5.64351162,1772.0,1771.8,0.7935]
[1745544213702,5.64365934,1771.9,1771.5,27.73470504]
[1745544213911,5.64351162,1772.0,1771.6,0.7935]
[1745544214211,5.64370774,1771.9,1771.6,0.7935]
[1745544214636,5.64425722,1771.8,1771.6,0.7935]
[1745544214843,5.64441262,1771.7,1771.4,0.7902]
[1745544215247,11.28899363,1771.7,1771.4,0.7902]
[1745544215446,6.43552236,1771.7,1771.2,0.7902]
[1745544215604,6.43551244,1771.7,1771.2,7.07947611]
[1745544216010,6.43549457,1771.7,1771.2,7.07947611]
[1745544216212,12.08009868,1771.7,1771.2,7.07947611]
[1745544216630,12.08005498,1771.7,1771.2,7.07947611]
[1745544216943,12.08004853,1771.7,1771.3,5.64553697]
[1745544217148,6.43549457,1771.7,1771.3,5.64553697]
[1745544217949,6.43549457,1771.7,1771.3,5.64538778]
[1745544218154,5.64449457,1771.7,1771.3,5.64538778]
[1745544218651,5.64465963,1771.6,1771.2,7.0795377]
[1745544219149,5.64498687,1771.5,1771.2,1.43382176]
[1745544219448,5.64494233,1771.5,1771.2,0.7902]
[1745544219639,11.28953989,1771.6,1771.2,6.43606971]
[1745544219839,5.64496454,1771.5,1771.2,0.7902]
[1745544220036,11.28957966,1771.6,1771.2,6.4360866]
[1745544220250,5.64536586,1771.4,1771.2,0.7902]
[1745544220427,5.64536586,1771.4,1771.0,6.444861]
[1745544221055,5.64623245,1771.1,1770.8,0.7764]
[1745544221237,0.7971,1771.5,1770.8,0.7764]
[1745544221418,11.29165792,1771.3,1770.8,6.42337019]
[1745544221615,5.64597163,1771.2,1770.8,6.4235624]
[1745544221852,11.2921336,1771.2,1770.8,0.7764]
[1745544222030,6.21058793,1771.2,1770.8,0.7764]
[1745544222434,0.7972,1771.1,1770.6,0.7764]
[1745544222639,11.29349644,1771.0,1770.6,0.7764]
[1745544222816,6.85575405,1771.0,1770.6,0.7764]
[1745544223366,5.64716909,1770.8,1770.3,11.57729309]
[1745544223651,5.64716909,1770.8,1770.4,5.64839989]
[1745544223855,6.85565554,1771.0,1770.3,0.7638]
[1745544224063,5.64766838,1770.7,1770.3,0.7638]
[1745544224364,5.64800144,1770.6,1770.3,0.7638]
[1745544224540,5.64800144,1770.6,1770.2,5.64905881]
[1745544224758,5.64800144,1770.6,1770.1,6.44649001]
[1745544224759,6.47106702,1770.5,1770.1,5.64936013]
[1745544224959,5.64888866,1770.3,1770.0,0.4093886]
[1745544226081,5.64918666,1770.2,1770.0,0.4093886]
[1745544226242,5.64861728,1770.4,1770.0,0.4093886]
[1745544226443,5.64861728,1770.4,1770.0,6.05900273]
[1745544226669,18.49836753,1770.5,1770.0,6.05900273]
[1745544226968,5.9899,1770.5,1770.0,1.58027962]
[1745544227139,5.9899,1770.5,1770.1,5.64913132]
[1745544227338,11.6381838,1770.5,1770.0,6.0588934]
[1745544227540,5.64891776,1770.3,1770.0,0.4093886]
[1745544227740,12.46116765,1770.4,1770.0,0.4093886]
[1745544227990,11.63820343,1770.5,1770.1,5.64919012]
[1745544228347,5.9899,1770.5,1770.1,5.64919012]
[1745544228558,5.9899,1770.5,1770.1,5.64939833]
[1745544228754,5.9899,1770.5,1770.1,5.64916407]
[1745544228952,5.9899,1770.5,1770.2,5.64885058]
[1745544229183,5.167,1770.5,1770.3,5.64866274]
[1745544229383,5.167,1770.5,1770.2,5.64890647]
[1745544229590,5.167,1770.5,1770.2,5.64889606]
[1745544230044,10.79544241,1770.5,1770.1,7.04012018]
[1745544230250,6.42145274,1770.7,1770.2,5.64892958]
[1745544230578,6.42145274,1770.7,1770.2,5.64893001]
[1745544230740,6.42145274,1770.7,1770.2,5.64884764]
[1745544230741,6.42147095,1770.7,1770.2,5.64884764]
[1745544230942,5.167,1770.8,1770.1,0.785]
[1745544231252,5.9313,1770.9,1770.6,5.64779883]
[1745544231461,7.77468726,1770.9,1770.6,5.64779883]
[1745544231651,5.64717401,1770.8,1770.4,5.64817227]
[1745544231976,5.167,1770.9,1770.6,6.3998789]
[1745544232278,5.167,1770.9,1770.7,5.64737853]
[1745544232492,5.167,1770.9,1770.6,6.3998789]
[1745544233176,10.81400194,1770.9,1770.4,6.40887687]
[1745544233392,5.64772579,1770.7,1770.2,6.40946357]
[1745544233670,5.64781942,1770.6,1770.2,6.40946357]
[1745544233979,5.64781942,1770.6,1770.2,6.40966384]
[1745544234290,5.64770498,1770.7,1770.2,6.40966384]
[1745544234783,0.8004,1771.0,1770.6,5.64775411]
[1745544235076,0.8004,1771.0,1770.6,5.64780279]
[1745544235275,0.8004,1771.0,1770.7,5.64737541]
[1745544235479,0.8004,1771.0,1770.7,5.64727849]
[1745544235652,0.8004,1771.0,1770.7,5.64741643]
[1745544236060,0.8004,1771.0,1770.6,0.7621]
[1745544236061,6.44705573,1771.0,1770.6,0.7621]
[1745544236258,0.8104,1771.2,1770.8,11.29391334]
[1745544236465,0.8104,1771.2,1770.8,11.29387849]
[1745544236659,6.45650304,1771.2,1770.7,5.64729697]
[1745544236866,7.61891709,1771.2,1770.8,5.64713502]
[1745544237260,0.8104,1771.2,1771.0,5.64636691]
[1745544237463,5.168,1771.3,1770.9,5.64671438]
[1745544237653,5.168,1771.3,1770.9,5.64662841]
[1745544237870,5.168,1771.3,1770.8,5.64695112]
[1745544238077,5.64623743,1771.1,1770.7,5.64722143]
[1745544238271,5.64598274,1771.2,1770.7,6.28815357]
[1745544238586,5.168,1771.3,1770.7,6.288197]
[1745544238789,5.64667577,1771.0,1770.2,6.08292746]
[1745544238981,5.64667577,1771.0,1770.6,5.6477819]
[1745544239155,6.46631351,1771.1,1770.6,5.6477819]
[1745544239492,5.64671532,1771.0,1770.6,5.64758221]
[1745544239689,5.64688881,1770.9,1770.5,5.64801211]
[1745544239856,5.64670632,1771.0,1770.6,5.6476691]
[1745544240191,5.64658014,1771.0,1770.6,5.6476691]
[1745544240487,5.64658014,1771.0,1770.5,6.86081248]
[1745544240488,5.64697955,1770.9,1770.5,6.86081248]
[1745544241058,5.64657121,1771.0,1770.5,6.86081248]
[1745544241260,11.94007455,1771.0,1770.5,5.64798064]
[1745544241461,5.64685574,1770.9,1770.5,5.64798064]
[1745544241659,5.64686465,1770.9,1770.5,5.64798064]
[1745544241879,6.46652054,1771.1,1770.7,5.64736345]
[1745544242080,7.67777867,1771.1,1770.6,5.64780165]
[1745544242396,5.64693621,1770.9,1770.5,5.64797972]
[1745544242571,5.64675892,1771.0,1770.6,5.64770679]
[1745544242770,11.29354765,1771.0,1770.6,6.77727544]
[1745544242967,5.64689259,1770.9,1770.5,5.64791702]
[1745544243424,5.64689259,1770.9,1770.5,5.64791675]
[1745544243586,7.67772969,1771.1,1770.5,5.64791675]
[1745544243587,5.64670999,1771.0,1770.5,5.64791675]
[1745544243798,5.64670999,1771.0,1770.6,5.64767155]
[1745544243984,2.03135813,1771.1,1770.4,6.4802602]
[1745544244160,5.64723273,1770.8,1770.4,6.4802602]
[1745544244359,5.64680514,1771.0,1770.4,1.48002602]
[1745544244566,5.96065607,1771.0,1770.5,5.64791297]
[1745544244875,5.6468769,1770.9,1770.5,5.64791297]
[1745544245397,5.6468769,1770.9,1770.5,11.29587256]
[1745544245704,5.64728628,1770.8,1770.4,6.4803325]
[1745544246286,5.6468769,1770.9,1770.5,5.648016]
[1745544246487,5.6468769,1770.9,1770.5,11.2959043]
[1745544246801,5.9608691,1771.0,1770.5,5.6478883]
[1745544246984,5.64686124,1770.9,1770.5,5.6478883]
[1745544247198,5.9608691,1771.0,1770.6,5.64775822]
[1745544247402,5.6468611,1770.9,1770.5,5.64787966]
[1745544247580,5.9608691,1771.0,1770.6,5.64777268]
[1745544247975,0.8201,1771.1,1770.7,5.64728673]
[1745544248180,5.64603959,1771.2,1770.7,5.64734691]
[1745544248382,5.64680327,1771.0,1770.6,0.8253]
[1745544248606,5.64680327,1771.0,1770.6,6.47306612]
[1745544248782,5.6467916,1771.0,1770.6,6.47306612]
[1745544248984,5.6467916,1771.0,1770.6,0.8253]
[1745544249311,5.64688484,1770.9,1770.6,0.8253]
[1745544250206,5.64654401,1771.0,1770.6,6.47297287]
[1745544250408,5.64698103,1770.9,1770.6,0.8253]
[1745544250977,11.29354482,1771.0,1770.6,6.47309227]
[1745544251178,5.64673484,1771.0,1770.6,6.47309227]
[1745544251407,11.29353756,1771.0,1770.6,6.47309227]
[1745544251618,5.64673484,1771.0,1770.6,6.4728529]
[1745544251785,6.31700609,1771.2,1770.6,7.12015457]
[1745544251987,0.31497495,1771.0,1770.7,5.6472392]
[1745544252187,5.96168043,1771.0,1770.6,7.12020148]
[1745544253114,5.96168043,1771.0,1770.6,7.12016257]
[1745544253115,5.64670548,1771.0,1770.6,7.12016257]
[1745544253694,5.64670548,1771.0,1770.6,6.47286145]
[1745544253903,5.64633961,1771.1,1770.6,6.47286145]
[1745544254206,5.64633961,1771.1,1770.7,5.64732927]
[1745544254888,0.31498153,1771.1,1770.8,5.64715689]
[1745544255092,0.31498153,1771.1,1770.8,5.64697615]